fUSD/lending_fUSD_20250223
["ID","MTS","AMOUNT","RATE_DAILY","PERIOD"]
[354220294,1740352231638,-152.147153,0.00010958,2]
[354220295,1740352231648,-163.259522,0.00010958,2]
[354220296,1740352231656,-152.147152,0.00010958,2]
[354220297,1740352231665,-164.128442,0.00010958,2]
[354220298,1740352231674,-152.147153,0.00010958,2]
[354220299,1740352231684,-165.214596,0.00010958,2]
[354220300,1740352231693,-155.48609402,0.00011041,2]
[354220308,1740352232054,-35.46352398,0.00011041,2]
[354220310,1740352232064,-250.298795,0.00011041,2]
[354220312,1740352232073,-30.83248102,0.00011123,2]
[354220315,1740352232085,-160.11713698,0.00011123,2]
[354220317,1740352232094,-250.298795,0.00011123,2]
[354220319,1740352232103,-190.949618,0.00011205,2]
[354220321,1740352232112,-250.298795,0.00011205,2]
[354220323,1740352232122,-164.128443,0.00011205,2]
[354220325,1740352232131,-80.29843069,0.00011205,2]
[354220327,1740352232142,-83.83001131,0.00011205,2]
[354220329,1740352232151,-190.949618,0.00011287,2]
[354220331,1740352232160,-250.298795,0.00011287,2]
[354220333,1740352232169,-190.949618,0.00011369,2]
[354220335,1740352232178,-250.298795,0.00011369,2]
[354220337,1740352232187,-152.147152,0.00011369,2]
[354220339,1740352232196,-152.147152,0.00011369,2]
[354220341,1740352232206,-9575.32607317,0.00011667,2]
[354220343,1740352232215,-745.52,0.00012629,2]
[354220345,1740352232224,-150.0,0.00012999,2]
[354220347,1740352232233,-550.0,0.00013,2]
[354220349,1740352232242,-255.0,0.00014104,2]
[354220351,1740352232252,-8698.02,0.00014548,2]
[354220353,1740352232261,-250.0,0.00014604,2]
[354220355,1740352232270,-415.43,0.00014623,2]
[354220357,1740352232280,-3577.38,0.00014635,2]
[354220359,1740352232289,-1399.62,0.0001474,2]
[354220361,1740352232298,-10569.42,0.0001475,2]
[354220363,1740352232307,-461.72,0.00014771,2]
[354220365,1740352232317,-1399.62,0.00014817,2]
[354220367,1740352232326,-250.0,0.0001485,2]
[354220369,1740352232335,-745.52,0.00014893,2]
[354220371,1740352232346,-1399.62,0.00014895,2]
[354220373,1740352232356,-200.0,0.00014969,2]
[354220375,1740352232365,-1399.62,0.00014973,2]
[354220376,1740352232374,-150.20894002,0.00015,2]
[354220378,1740352232383,-1399.62,0.0001505,2]
[354220380,1740352232393,-150.0,0.0001509,2]
[354220381,1740352232402,-150.0,0.0001509,2]
[354220382,1740352232411,-150.43090774,0.0001509,2]
[354220383,1740352232424,-150.0,0.0001509,2]
[354220384,1740352232434,-150.0,0.0001509,2]
[354220385,1740352232443,-1000.0,0.00015115,2]
[354220386,1740352232451,-179.27,0.00015125,2]
[354220387,1740352232461,-1399.62,0.00015128,2]
[354220388,1740352232470,-1399.62,0.00015205,2]
[354220402,1740352232616,-8798.03,0.00015227,2]
[354220406,1740352232645,-150.0,0.00015258,2]
[354220408,1740352232655,-165.02,0.00015275,2]
[354220410,1740352232664,-1399.62,0.00015283,2]
[354220412,1740352232673,-433.0,0.000153,2]
[354220414,1740352232681,-1399.62,0.00015361,2]
[354220416,1740352232690,-150.0,0.00015426,2]
[354220418,1740352232699,-150.0,0.00015426,2]
[354220420,1740352232709,-500.0,0.00015435,2]
[354220422,1740352232718,-1399.62,0.00015438,2]
[354220424,1740352232727,-200.0,0.00015458,2]
[354220426,1740352232736,-162.37,0.00015458,2]
[354220428,1740352232745,-2356.6667,0.00015459,2]
[354220430,1740352232754,-1399.62,0.00015516,2]
[354220432,1740352232763,-200.0,0.0001555,2]
[354220434,1740352232772,-1399.62,0.00015593,2]
[354220436,1740352232782,-150.0,0.00015593,2]
[354220438,1740352232791,-150.0,0.00015649,2]
[354220440,1740352232799,-1399.62,0.00015671,2]
[354220442,1740352232809,-1399.62,0.00015748,2]
[354220444,1740352232818,-150.0,0.00015761,2]
[354220446,1740352232826,-150.0,0.00015761,2]
[354220448,1740352232835,-509.46,0.00015807,2]
[354220450,1740352232844,-822.88,0.00015807,2]
[354220452,1740352232853,-1399.62,0.00015826,2]
[354220454,1740352232863,-1399.62,0.00015904,2]
[354220456,1740352232872,-150.0,0.00015929,2]
[354220458,1740352232881,-1399.62,0.00015981,2]
[354220460,1740352232890,-1399.62,0.00016059,2]
[354220461,1740352232900,-150.0,0.00016072,2]
[354220463,1740352232909,-150.0,0.00016096,2]
[354220464,1740352232918,-150.0,0.00016096,2]
[354220466,1740352232927,-220.0,0.00016098,2]
[354220468,1740352232936,-1399.62,0.00016136,2]
[354220470,1740352232945,-150.0,0.00016208,2]
[354220472,1740352232954,-1399.62,0.00016214,2]
[354220474,1740352232964,-150.0,0.00016264,2]
[354220476,1740352232973,-150.0,0.00016292,2]
[354220478,1740352232982,-150.78,0.00016307,2]
[354220480,1740352232991,-2500.0,0.00016337,2]
[354220482,1740352233000,-2192.28354676,0.00016338,2]
[354220484,1740352233010,-158.27255122,0.00016338,2]
[354220486,1740352233019,-503.7,0.00016338,2]
[354220487,1740352233029,-503.0,0.00016338,2]
[354220489,1740352233039,-500.0,0.00016338,2]
[354220491,1740352233049,-502.5,0.00016338,2]
[354220493,1740352233059,-7189.4069,0.00016338,2]
[354220495,1740352233069,-331.6251,0.00016338,2]
[354220497,1740352233079,-1000.0,0.00016338,2]
[354220499,1740352233090,-7500.0,0.00016338,2]
[354220501,1740352233100,-158.2725512,0.00016362,2]
[354220503,1740352233110,-3919.0,0.00016382,2]
[354220505,1740352233120,-1009.0,0.00016382,2]
[354220507,1740352233130,-157.444,0.00016382,2]
[354220509,1740352233140,-1110.0,0.00016382,2]
[354220511,1740352233150,-158.2725512,0.00016386,2]
[354220513,1740352233160,-380.21504138,0.00016402,2]
[354220515,1740352233169,-158.2725512,0.00016411,2]
[354220517,1740352233179,-153.60690226,0.0001642,2]
[354220519,1740352233189,-2192.28354667,0.00016429,2]
[354220521,1740352233199,-150.0,0.00016432,2]
[354220523,1740352233209,-150.0,0.00016432,2]
[354220525,1740352233219,-158.2725512,0.00016435,2]
[354220527,1740352233228,-500.0,0.00016437,2]
[354220529,1740352233237,-249.58051642,0.00016437,2]
[354220531,1740352233247,-1000.0,0.00016437,2]
[354220533,1740352233257,-1000.0,0.00016437,2]
[354220535,1740352233267,-1000.0,0.00016437,2]
[354220537,1740352233277,-101298.16394987,0.00016437,8]
[354220539,1740352233287,-500.0,0.00016438,2]
[354220541,1740352233296,-500.0,0.00016438,2]
[354220543,1740352233305,-500.0,0.00016438,2]
[354220545,1740352233315,-500.0,0.00016438,2]
[354220546,1740352233324,-500.0,0.00016438,2]
[354220548,1740352233334,-500.0,0.00016438,2]
[354220551,1740352233345,-500.0,0.00016438,2]
[354220552,1740352233357,-500.0,0.00016438,2]
[354220554,1740352233366,-500.0,0.00016438,2]
[354220556,1740352233376,-502.78193561,0.00016438,2]
[354220559,1740352233387,-551.7,0.00016438,2]
[354220560,1740352233396,-500.0,0.00016438,2]
[354220562,1740352233405,-500.0,0.00016438,2]
[354220565,1740352233416,-506.31919096,0.00016438,2]
[354220567,1740352233426,-699.78,0.00016438,2]
[354220568,1740352233436,-500.0,0.00016438,2]
[354220570,1740352233445,-502.58474832,0.00016438,2]
[354220573,1740352233455,-500.0,0.00016438,2]
[354220575,1740352233466,-500.0,0.00016438,2]
[354220576,1740352233476,-500.0,0.00016438,2]
[354220578,1740352233485,-500.0,0.00016438,2]
[354220580,1740352233495,-500.0,0.00016438,2]
[354220582,1740352233505,-500.0,0.00016438,2]
[354220584,1740352233514,-500.0,0.00016438,2]
[354220587,1740352233525,-500.0,0.00016438,2]
[354220588,1740352233534,-500.0,0.00016438,2]
[354220591,1740352233544,-500.0,0.00016438,2]
[354220593,1740352233553,-500.0,0.00016438,2]
[354220594,1740352233562,-500.0,0.00016438,2]
[354220596,1740352233571,-500.0,0.00016438,2]
[354220598,1740352233581,-818.11,0.00016438,2]
[354220600,1740352233589,-500.0,0.00016438,2]
[354220602,1740352233598,-500.0,0.00016438,2]
[354220604,1740352233608,-500.0,0.00016438,2]
[354220606,1740352233618,-500.0,0.00016438,2]
[354220608,1740352233627,-504.56899706,0.00016438,2]
[354220610,1740352233637,-500.0,0.00016438,2]
[354220612,1740352233647,-500.0,0.00016438,2]
[354220615,1740352233657,-500.0,0.00016438,2]
[354220617,1740352233667,-500.0,0.00016438,2]
[354220618,1740352233676,-500.0,0.00016438,2]
[354220621,1740352233686,-500.0,0.00016438,2]
[354220622,1740352233695,-500.0,0.00016438,2]
[354220624,1740352233704,-500.0,0.00016438,2]
[354220627,1740352233715,-500.0,0.00016438,2]
[354220628,1740352233724,-504.09108458,0.00016438,2]
[354220630,1740352233734,-500.0,0.00016438,2]
[354220632,1740352233744,-500.0,0.00016438,2]
[354220634,1740352233753,-500.0,0.00016438,2]
[354220636,1740352233762,-500.0,0.00016438,2]
[354220638,1740352233771,-500.0,0.00016438,2]
[354220640,1740352233780,-390.66678655,0.00016438,2]
[354220642,1740352233789,-500.0,0.00016438,2]
[354220644,1740352233798,-500.0,0.00016438,2]
[354220646,1740352233808,-500.0,0.00016438,2]
[354220648,1740352233817,-500.0,0.00016438,2]
[354220650,1740352233826,-500.0,0.00016438,2]
[354220652,1740352233835,-500.0,0.00016438,2]
[354220654,1740352233845,-984.17,0.00016438,2]
[354220656,1740352233854,-500.0,0.00016438,2]
[354220658,1740352233863,-501.63111142,0.00016438,2]
[354220660,1740352233872,-500.0,0.00016438,2]
[354220662,1740352233881,-500.0,0.00016438,2]
[354220664,1740352233890,-978.85,0.00016438,2]
[354220666,1740352233900,-500.0,0.00016438,2]
[354220667,1740352233909,-500.0,0.00016438,2]
[354220669,1740352233918,-504.97,0.00016438,2]
[354220671,1740352233928,-500.0,0.00016438,2]
[354220673,1740352233938,-500.0,0.00016438,2]
[354220675,1740352233947,-500.0,0.00016438,2]
[354220677,1740352233957,-500.0,0.00016438,2]
[354220679,1740352233966,-500.0,0.00016438,2]
[354220681,1740352233976,-500.0,0.00016438,2]
[354220683,1740352233985,-500.0,0.00016438,2]
[354220685,1740352233994,-500.0,0.00016438,2]
[354220687,1740352234003,-500.0,0.00016438,2]
[354220689,1740352234013,-500.0,0.00016438,2]
[354220691,1740352234022,-500.0,0.00016438,2]
[354220693,1740352234031,-481.00027576,0.00016438,2]
[354220695,1740352234040,-500.0,0.00016438,2]
[354220697,1740352234049,-500.0,0.00016438,2]
[354220699,1740352234059,-500.0,0.00016438,2]
[354220700,1740352234068,-500.0,0.00016438,2]
[354220702,1740352234077,-500.0,0.00016438,2]
[354220704,1740352234086,-500.0,0.00016438,2]
[354220706,1740352234095,-500.0,0.00016438,2]
[354220708,1740352234105,-500.0,0.00016438,2]
[354220711,1740352234115,-500.0,0.00016438,2]
[354220712,1740352234124,-500.0,0.00016438,2]
[354220714,1740352234133,-500.0,0.00016438,2]
[354220716,1740352234143,-500.0,0.00016438,2]
[354220718,1740352234152,-500.0,0.00016438,2]
[354220720,1740352234163,-500.0,0.00016438,2]
[354220722,1740352234172,-500.0,0.00016438,2]
[354220724,1740352234181,-674.42,0.00016438,2]
[354220726,1740352234190,-500.0,0.00016438,2]
[354220728,1740352234199,-500.0,0.00016438,2]
[354220730,1740352234209,-1000.79,0.00016438,2]
[354220732,1740352234219,-500.0,0.00016438,2]
[354220734,1740352234228,-500.0,0.00016438,2]
[354220736,1740352234237,-500.0,0.00016438,2]
[354220738,1740352234246,-500.0,0.00016438,2]
[354220740,1740352234255,-500.0,0.00016438,2]
[354220742,1740352234264,-500.0,0.00016438,2]
[354220744,1740352234274,-500.0,0.00016438,2]
[354220746,1740352234283,-500.0,0.00016438,2]
[354220748,1740352234292,-500.0,0.00016438,2]
[354220750,1740352234301,-500.0,0.00016438,2]
[354220752,1740352234311,-500.0,0.00016438,2]
[354220754,1740352234320,-684.19,0.00016438,2]
[354220756,1740352234329,-500.0,0.00016438,2]
[354220758,1740352234338,-500.0,0.00016438,2]
[354220759,1740352234347,-658.04,0.00016438,2]
[354220761,1740352234357,-500.0,0.00016438,2]
[354220763,1740352234366,-2335.6,0.00016438,2]
[354220765,1740352234378,-500.0,0.00016438,2]
[354220767,1740352234387,-1114.32,0.00016438,2]
[354220769,1740352234397,-500.0,0.00016438,2]
[354220771,1740352234406,-1056.07,0.00016438,2]
[354220773,1740352234415,-815.39,0.00016438,2]
[354220775,1740352234424,-500.0,0.00016438,2]
[354220777,1740352234433,-1007.45,0.00016438,2]
[354220779,1740352234443,-500.0,0.00016438,2]
[354220781,1740352234452,-1024.47,0.00016438,2]
[354220783,1740352234462,-500.0,0.00016438,2]
[354220785,1740352234471,-1546.7,0.00016438,2]
[354220787,1740352234481,-500.0,0.00016438,2]
[354220789,1740352234490,-1380.08,0.00016438,2]
[354220791,1740352234499,-370.89607988,0.00016438,2]
[354220793,1740352234508,-1392.82,0.00016438,2]
[354220795,1740352234517,-500.0,0.00016438,2]
[354220797,1740352234526,-500.0,0.00016438,2]
[354220799,1740352234535,-500.0,0.00016438,2]
[354220801,1740352234544,-500.0,0.00016438,2]
[354220803,1740352234553,-500.0,0.00016438,2]
[354220805,1740352234563,-1418.33,0.00016438,2]
[354220807,1740352234571,-500.0,0.00016438,2]
[354220809,1740352234580,-500.0,0.00016438,2]
[354220811,1740352234589,-504.20457054,0.00016438,2]
[354220813,1740352234598,-500.0,0.00016438,2]
[354220815,1740352234607,-1473.44,0.00016438,2]
[354220817,1740352234617,-500.0,0.00016438,2]
[354220819,1740352234626,-1042.13,0.00016438,2]
[354220821,1740352234635,-500.0,0.00016438,2]
[354220823,1740352234645,-500.0,0.00016438,2]
[354220824,1740352234654,-300.0,0.00016438,2]
[354220825,1740352234663,-500.0,0.00016438,2]
[354220826,1740352234672,-500.0,0.00016438,2]
[354220827,1740352234681,-500.0,0.00016438,2]
[354220828,1740352234690,-1066.47,0.00016438,2]
[354220829,1740352234700,-1455.44,0.00016438,2]
[354220830,1740352234709,-517.37880828,0.00016438,2]
[354220831,1740352234718,-512.85118256,0.00016438,2]
[354220832,1740352234728,-583.3,0.00016438,2]
[354220833,1740352234738,-1368.36,0.00016438,2]
[354220834,1740352234747,-500.0,0.00016438,2]
[354220835,1740352234756,-632.65,0.00016438,2]
[354220836,1740352234765,-500.0,0.00016438,2]
[354220837,1740352234775,-500.0,0.00016438,2]
[354220838,1740352234784,-500.0,0.00016438,2]
[354220839,1740352234793,-505.47358965,0.00016438,2]
[354220840,1740352234802,-1014.8,0.00016438,2]
[354220841,1740352234811,-505.39,0.00016438,2]
[354220842,1740352234821,-500.0,0.00016438,2]
[354220843,1740352234830,-500.0,0.00016438,2]
[354220844,1740352234839,-500.0,0.00016438,2]
[354220845,1740352234848,-268.65837626,0.00016438,2]
[354220846,1740352234857,-516.92262837,0.00016438,2]
[354220847,1740352234866,-500.0,0.00016438,2]
[354220848,1740352234876,-500.0,0.00016438,2]
[354220849,1740352234885,-1108.04,0.00016438,2]
[354220850,1740352234894,-500.0,0.00016438,2]
[354220851,1740352234903,-616.58073283,0.00016438,2]
[354220852,1740352234912,-500.0,0.00016438,2]
[354220853,1740352234922,-500.95,0.00016438,2]
[354220854,1740352234931,-500.0,0.00016438,2]
[354220855,1740352234940,-500.0,0.00016438,2]
[354220856,1740352234949,-728.91,0.00016438,2]
[354220857,1740352234959,-500.0,0.00016438,2]
[354220858,1740352234968,-1438.01,0.00016438,2]
[354220859,1740352234978,-500.0,0.00016438,2]
[354220860,1740352234987,-1771.05,0.00016438,2]
[354220861,1740352234997,-500.0,0.00016438,2]
[354220862,1740352235006,-500.0,0.00016438,2]
[354220863,1740352235016,-961.5,0.00016438,2]
[354220864,1740352235025,-558.2,0.00016438,2]
[354220865,1740352235034,-500.0,0.00016438,2]
[354220866,1740352235044,-500.0,0.00016438,2]
[354220867,1740352235053,-500.0,0.00016438,2]
[354220868,1740352235062,-500.0,0.00016438,2]
[354220869,1740352235072,-500.0,0.00016438,2]
[354220870,1740352235081,-500.0,0.00016438,2]
[354220871,1740352235091,-1006.24,0.00016438,2]
[354220872,1740352235100,-500.0,0.00016438,2]
[354220873,1740352235109,-602.93,0.00016438,2]
[354220874,1740352235119,-512.90019708,0.00016438,2]
[354220875,1740352235129,-500.0,0.00016438,2]
[354220876,1740352235139,-500.0,0.00016438,2]
[354220877,1740352235149,-500.0,0.00016438,2]
[354220878,1740352235159,-500.0,0.00016438,2]
[354220879,1740352235168,-500.0,0.00016438,2]
[354220880,1740352235177,-500.0,0.00016438,2]
[354220881,1740352235187,-500.0,0.00016438,2]
[354220882,1740352235197,-500.0,0.00016438,2]
[354220883,1740352235207,-500.0,0.00016438,2]
[354220884,1740352235219,-500.0,0.00016438,2]
[354220885,1740352235228,-500.0,0.00016438,2]
[354220886,1740352235238,-1173.51,0.00016438,2]
[354220887,1740352235247,-500.0,0.00016438,2]
[354220888,1740352235257,-500.0,0.00016438,2]
[354220889,1740352235267,-508.03380309,0.00016438,2]
[354220890,1740352235276,-500.0,0.00016438,2]
[354220891,1740352235286,-1934.16,0.00016438,2]
[354220892,1740352235296,-500.0,0.00016438,2]
[354220893,1740352235305,-1088.29,0.00016438,2]
[354220894,1740352235315,-500.0,0.00016438,2]
[354220895,1740352235324,-1140.14,0.00016438,2]
[354220896,1740352235333,-210.5014091,0.00016438,2]
[354220897,1740352235342,-500.0,0.00016438,2]
[354220898,1740352235355,-500.0,0.00016438,2]
[354220899,1740352235363,-714.76,0.00016438,2]
[354220900,1740352235372,-662.54,0.00016438,2]
[354220901,1740352235382,-888.13,0.00016438,2]
[354220902,1740352235391,-500.0,0.00016438,2]
[354220903,1740352235400,-500.0,0.00016438,2]
[354220904,1740352235409,-500.0,0.00016438,2]
[354220905,1740352235418,-500.0,0.00016438,2]
[354220906,1740352235427,-1209.93,0.00016438,2]
[354220907,1740352235438,-500.0,0.00016438,2]
[354220908,1740352235447,-887.25,0.00016438,2]
[354220909,1740352235456,-635.07,0.00016438,2]
[354220910,1740352235467,-500.0,0.00016438,2]
[354220911,1740352235476,-500.0,0.00016438,2]
[354220912,1740352235485,-500.0,0.00016438,2]
[354220913,1740352235499,-906.08,0.00016438,2]
[354220914,1740352235508,-500.0,0.00016438,2]
[354220915,1740352235517,-500.0,0.00016438,2]
[354220916,1740352235527,-500.0,0.00016438,2]
[354220917,1740352235537,-500.0,0.00016438,2]
[354220918,1740352235547,-1368.52,0.00016438,2]
[354220919,1740352235556,-500.0,0.00016438,2]
[354220920,1740352235566,-500.0,0.00016438,2]
[354220921,1740352235575,-500.0,0.00016438,2]
[354220922,1740352235585,-544.66,0.00016438,2]
[354220923,1740352235595,-500.0,0.00016438,2]
[354220924,1740352235604,-790.31,0.00016438,2]
[354220925,1740352235614,-500.0,0.00016438,2]
[354220926,1740352235625,-1058.64,0.00016438,2]
[354220927,1740352235635,-1175.32,0.00016438,2]
[354220928,1740352235990,-897.85,0.00016438,2]
[354220929,1740352236000,-540.46976453,0.00016438,2]
[354220930,1740352236010,-500.0,0.00016438,2]
[354220931,1740352236019,-500.0,0.00016438,2]
[354220932,1740352236029,-500.0,0.00016438,2]
[354220933,1740352236039,-500.0,0.00016438,2]
[354220934,1740352236048,-527.13064871,0.00016438,2]
[354220935,1740352236057,-1230.76,0.00016438,2]
[354220936,1740352236066,-1372.08,0.00016438,2]
[354220937,1740352236076,-500.0,0.00016438,2]
[354220938,1740352236085,-958.26,0.00016438,2]
[354220939,1740352236095,-500.0,0.00016438,2]
[354220940,1740352236104,-500.0,0.00016438,2]
[354220941,1740352236113,-259.55928313,0.00016438,2]
[354220942,1740352236122,-500.0,0.00016438,2]
[354220943,1740352236132,-500.0,0.00016438,2]
[354220944,1740352236141,-500.0,0.00016438,2]
[354220945,1740352236151,-500.0,0.00016438,2]
[354220946,1740352236160,-506.57233409,0.00016438,2]
[354220947,1740352236169,-547.77,0.00016438,2]
[354220948,1740352236179,-1133.7,0.00016438,2]
[354220949,1740352236188,-502.52407061,0.00016438,2]
[354220950,1740352236198,-500.0,0.00016438,2]
[354220951,1740352236207,-506.29107573,0.00016438,2]
[354220952,1740352236219,-816.84,0.00016438,2]
[354220953,1740352236228,-821.79,0.00016438,2]
[354220954,1740352236237,-500.0,0.00016438,2]
[354220955,1740352236246,-500.0,0.00016438,2]
[354220956,1740352236256,-510.88666813,0.00016438,2]
[354220957,1740352236265,-500.0,0.00016438,2]
[354220958,1740352236275,-500.0,0.00016438,2]
[354220959,1740352236285,-500.0,0.00016438,2]
[354220960,1740352236294,-1028.74,0.00016438,2]
[354220961,1740352236304,-959.94,0.00016438,2]
[354220962,1740352236313,-1776.38,0.00016438,2]
[354220963,1740352236322,-1447.83,0.00016438,2]
[354220964,1740352236331,-500.0,0.00016438,2]
[354220965,1740352236340,-511.48875368,0.00016438,2]
[354220966,1740352236349,-500.0,0.00016438,2]
[354220967,1740352236361,-500.0,0.00016438,2]
[354220968,1740352236373,-530.15194098,0.00016438,2]
[354220969,1740352236382,-751.84,0.00016438,2]
[354220970,1740352236391,-761.16,0.00016438,2]
[354220971,1740352236399,-500.0,0.00016438,2]
[354220972,1740352236409,-500.0,0.00016438,2]
[354220973,1740352236419,-813.26,0.00016438,2]
[354220974,1740352236428,-1058.56,0.00016438,2]
[354220975,1740352236438,-815.73,0.00016438,2]
[354220976,1740352236447,-500.0,0.00016438,2]
[354220977,1740352236456,-500.0,0.00016438,2]
[354220978,1740352236465,-696.88,0.00016438,2]
[354220979,1740352236474,-500.0,0.00016438,2]
[354220980,1740352236483,-527.2,0.00016438,2]
[354220981,1740352236492,-614.90147282,0.00016438,2]
[354220982,1740352236501,-910.19,0.00016438,2]
[354220983,1740352236510,-1913.05,0.00016438,2]
[354220984,1740352236519,-669.04,0.00016438,2]
[354220985,1740352236530,-1110.92,0.00016438,2]
[354220986,1740352236539,-1183.22,0.00016438,2]
[354220987,1740352236549,-500.0,0.00016438,2]
[354220988,1740352236558,-500.0,0.00016438,2]
[354220989,1740352236567,-500.0,0.00016438,2]
[354220990,1740352236576,-500.0,0.00016438,2]
[354220991,1740352236585,-500.0,0.00016438,2]
[354220992,1740352236595,-500.0,0.00016438,2]
[354220993,1740352236604,-1240.78,0.00016438,2]
[354220994,1740352236614,-500.0,0.00016438,2]
[354220995,1740352236623,-879.3,0.00016438,2]
[354220996,1740352236633,-500.0,0.00016438,2]
[354220997,1740352236642,-1767.26,0.00016438,2]
[354220998,1740352236651,-967.57,0.00016438,2]
[354220999,1740352236660,-1994.53,0.00016438,2]
[354221000,1740352236670,-500.0,0.00016438,2]
[354221001,1740352236679,-1000.31,0.00016438,2]
[354221002,1740352236688,-500.0,0.00016438,2]
[354221003,1740352236698,-500.0,0.00016438,2]
[354221004,1740352236707,-875.12,0.00016438,2]
[354221005,1740352236718,-500.0,0.00016438,2]
[354221006,1740352236727,-535.29397655,0.00016438,2]
[354221007,1740352236737,-908.59,0.00016438,2]
[354221008,1740352236746,-500.0,0.00016438,2]
[354221009,1740352236756,-702.63,0.00016438,2]
[354221010,1740352236765,-777.1,0.00016438,2]
[354221011,1740352236774,-190.949618,0.00016438,2]
[354221012,1740352236783,-500.0,0.00016438,2]
[354221013,1740352236792,-500.0,0.00016438,2]
[354221014,1740352236801,-500.0,0.00016438,2]
[354221015,1740352236810,-1364.58,0.00016438,2]
[354221016,1740352236820,-500.0,0.00016438,2]
[354221017,1740352236829,-956.09,0.00016438,2]
[354221018,1740352236839,-500.0,0.00016438,2]
[354221019,1740352236848,-500.0,0.00016438,2]
[354221020,1740352236861,-500.0,0.00016438,2]
[354221021,1740352236871,-985.86,0.00016438,2]
[354221022,1740352236880,-500.0,0.00016438,2]
[354221023,1740352236890,-533.65,0.00016438,2]
[354221024,1740352236900,-500.0,0.00016438,2]
[354221025,1740352236909,-518.47,0.00016438,2]
[354221026,1740352236919,-1144.86,0.00016438,2]
[354221027,1740352236928,-500.0,0.00016438,2]
[354221028,1740352236937,-526.47,0.00016438,2]
[354221029,1740352236946,-250.298795,0.00016438,2]
[354221030,1740352236956,-500.0,0.00016438,2]
[354221031,1740352236966,-1709.74,0.00016438,2]
[354221032,1740352236975,-500.0,0.00016438,2]
[354221033,1740352236984,-500.0,0.00016438,2]
[354221034,1740352236993,-769.14,0.00016438,2]
[354221035,1740352237003,-864.95,0.00016438,2]
[354221036,1740352237012,-500.0,0.00016438,2]
[354221037,1740352237021,-500.0,0.00016438,2]
[354221038,1740352237030,-1867.05,0.00016438,2]
[354221039,1740352237040,-500.0,0.00016438,2]
[354221040,1740352237049,-500.0,0.00016438,2]
[354221041,1740352237059,-500.0,0.00016438,2]
[354221042,1740352237071,-500.0,0.00016438,2]
[354221043,1740352237080,-974.3,0.00016438,2]
[354221044,1740352237090,-613.44,0.00016438,2]
[354221045,1740352237100,-923.63,0.00016438,2]
[354221046,1740352237110,-501.41709868,0.00016438,2]
[354221047,1740352237119,-815.98,0.00016438,2]
[354221048,1740352237129,-500.0,0.00016438,2]
[354221049,1740352237139,-665.57,0.00016438,2]
[354221050,1740352237148,-500.0,0.00016438,2]
[354221051,1740352237158,-500.0,0.00016438,2]
[354221052,1740352237167,-500.0,0.00016438,2]
[354221054,1740352237177,-1761.7,0.00016438,2]
[354221055,1740352237187,-500.0,0.00016438,2]
[354221057,1740352237197,-500.0,0.00016438,2]
[354221058,1740352237206,-620.02,0.00016438,2]
[354221059,1740352237218,-500.0,0.00016438,2]